bitfinex-derivatives/quotes_BNBF0:USTF0_20250211
["timestamp","ask_amount","ask_price","bid_price","bid_amount"]
[1739304864404,1.35481261,628.86,628.37,0.2690111]
[1739304864602,1.35481261,628.85,628.37,0.2690111]
[1739304864801,1.35481261,628.84,628.37,1.45346812]
[1739304865001,1.35481261,628.83,628.37,1.45346812]
[1739304865198,1.35481261,628.82,628.38,0.2690111]
[1739304865404,1.35481261,628.81,628.38,0.2690111]
[1739304865604,1.35481261,628.8,628.38,0.2690111]
[1739304865798,1.35481261,628.79,628.38,0.2690111]
[1739304866001,1.35481261,628.78,628.38,0.2690111]
[1739304866202,1.35481261,628.77,628.38,0.2690111]
[1739304866403,1.35481261,628.76,628.38,0.2690111]
[1739304866704,1.35481261,628.75,628.38,0.2690111]
[1739304866901,1.35481261,628.74,628.38,0.2690111]
[1739304867104,1.35481261,628.73,628.41,1.18445702]
[1739304867303,1.35481261,628.72,628.42,0.2690111]
[1739304867499,1.35481261,628.71,628.42,0.2690111]
[1739304867700,1.35481261,628.7,628.42,0.2690111]
[1739304867904,1.35481261,628.69,628.42,0.2690111]
[1739304868105,1.35481261,628.68,628.42,0.2690111]
[1739304868401,1.35481261,628.67,628.42,0.2690111]
[1739304868606,1.35481261,628.66,628.42,0.2690111]
[1739304868807,1.35481261,628.65,628.42,0.2690111]
[1739304869101,1.35481261,628.64,628.42,0.2690111]
[1739304869305,0.31766705,629.59,628.43,0.31825342]
[1739304869505,1.35397805,629.58,628.44,0.2690111]
[1739304869808,1.35397805,629.57,628.45,0.31824329]
[1739304870006,1.35397805,629.56,628.46,0.2690111]
[1739304870200,1.35397805,629.55,628.46,0.2690111]
[1739304870406,1.35397805,629.54,628.46,0.2690111]
[1739304870608,1.35397805,629.53,628.47,0.31823316]
[1739304870804,1.35397805,629.52,628.48,0.2690111]
[1739304871001,1.35397805,629.51,628.49,0.31822304]
[1739304871202,0.31766705,629.59,628.49,0.31822304]
[1739304871203,1.35397805,629.5,628.5,0.2690111]
[1739304871503,1.35397805,629.49,628.51,0.31821291]
[1739304871704,1.35397805,629.48,628.52,0.2690111]
[1739304871911,1.35397805,629.47,628.53,0.31820279]
[1739304872107,1.35397805,629.46,628.54,0.2690111]
[1739304872303,0.31766705,629.59,628.55,0.31819266]
[1739304872304,1.35397805,629.45,628.55,0.31819266]
[1739304872507,1.35397805,629.44,628.56,0.2690111]
[1739304872806,1.35397805,629.43,628.57,0.31818254]
[1739304873008,1.35397805,629.42,628.58,0.26896176]
[1739304873210,1.35397805,629.41,628.59,0.31817241]
[1739304873509,1.35397805,629.4,628.6,0.26896176]
[1739304873706,1.35397805,629.39,628.6,0.26896176]
[1739304873906,1.35397805,629.38,628.6,0.26896176]
[1739304874107,1.35397805,629.37,628.6,0.26896176]
[1739304874308,1.35397805,629.36,628.6,0.26896176]
[1739304874508,1.35397805,629.35,628.6,0.26896176]
[1739304874706,1.35397805,629.34,628.6,0.26896176]
[1739304874910,1.35397805,629.33,628.6,0.26896176]
[1739304875111,1.35397805,629.32,628.6,0.26896176]
[1739304875409,1.35397805,629.31,628.6,0.26896176]
[1739304875605,1.35397805,629.3,628.6,0.26896176]
[1739304875808,1.35397805,629.29,628.6,0.26896176]
[1739304876004,1.35397805,629.28,628.6,0.26896176]
[1739304876210,1.35397805,629.27,628.6,0.26896176]
[1739304876409,1.35397805,629.26,628.61,0.26876116]
[1739304876610,1.35397805,629.25,628.61,0.26876116]
[1739304876807,1.35397805,629.24,628.62,0.26876116]
[1739304877010,1.35397805,629.24,628.59,0.31817241]
[1739304877011,1.35397805,629.23,628.6,0.26876116]
[1739304877209,1.35397805,629.22,628.61,0.26876116]
[1739304877412,1.35397805,629.21,628.6,0.26876116]
[1739304877606,1.35397805,629.2,628.6,0.26876116]
[1739304877806,1.35397805,629.19,628.6,0.26876116]
[1739304878006,1.35397805,629.18,628.6,0.26876116]
[1739304878207,0.31766705,629.59,628.6,0.26876116]
[1739304878412,1.35217627,629.58,628.6,0.26876116]
[1739304878613,1.35217627,629.57,628.6,0.26876116]
[1739304878813,1.35217627,629.56,628.6,0.26876116]
[1739304879116,1.35217627,629.55,628.6,0.26876116]
[1739304879313,1.35217627,629.54,628.6,0.26876116]
[1739304879514,1.35217627,629.53,628.6,0.26876116]
[1739304879715,1.35217627,629.52,628.6,0.26876116]
[1739304879917,1.35217627,629.51,628.59,0.31817241]
[1739304880115,1.35221904,629.5,628.6,0.26871638]
[1739304880414,1.35221904,629.49,628.6,0.26871638]
[1739304880615,1.35221904,629.48,628.6,0.26871638]
[1739304880809,1.35221904,629.47,628.6,0.26871638]
[1739304881015,1.35221904,629.46,628.6,0.26871638]
[1739304881309,1.35221904,629.45,628.6,0.26871638]
[1739304881609,1.35221904,629.44,628.6,0.26871638]
[1739304881815,1.35221904,629.43,628.6,0.26871638]
[1739304882016,0.31766705,629.59,628.6,0.26871638]
[1739304882216,1.35342611,629.58,628.6,0.26871638]
[1739304882413,1.35342611,629.57,628.6,0.26871638]
[1739304882614,1.35342611,629.56,628.6,0.26871638]
[1739304882815,1.35342611,629.55,628.6,0.26871638]
[1739304883018,1.35342611,629.54,628.6,0.26871638]
[1739304883218,1.35342611,629.53,628.6,0.26871638]
[1739304883410,0.31766705,629.59,628.6,0.26871638]
[1739304883615,1.3540104,629.58,628.6,0.26871638]
[1739304883811,1.3540104,629.57,628.6,0.26871638]
[1739304884016,1.3540104,629.56,628.6,0.26871638]
[1739304884213,1.3540104,629.55,628.6,0.26871638]
[1739304884416,1.3540104,629.54,628.6,0.26871638]
[1739304884720,1.3540104,629.53,628.6,0.26871638]
[1739304885017,1.3540104,629.52,628.6,0.26871638]
[1739304885218,1.3540104,629.51,628.6,0.26871638]
[1739304885415,1.3540104,629.5,628.6,0.26871638]
[1739304885619,1.3540104,629.49,628.6,0.26871638]
[1739304885919,1.3540104,629.48,628.6,0.26871638]
[1739304886125,1.3540104,629.47,628.6,0.26871638]
[1739304886321,1.3540104,629.46,628.6,0.26871638]
[1739304886515,1.355767,629.45,628.6,0.26871638]
[1739304886820,1.355767,629.44,628.61,0.26883438]
[1739304887014,1.35576756,629.43,628.6,0.26883438]
[1739304887222,1.35576756,629.42,628.61,0.26883438]
[1739304887418,1.35576756,629.41,628.6,0.26883438]
[1739304887619,1.35576756,629.4,628.61,0.26883438]
[1739304887819,1.35576756,629.4,628.59,0.31817241]
[1739304887820,1.35576756,629.39,628.6,0.26883438]
[1739304888118,1.35576756,629.38,628.61,0.26883438]
[1739304888318,1.35576756,629.37,628.6,0.26883438]
[1739304888522,1.35576756,629.36,628.62,0.26883438]
[1739304888718,1.35576756,629.35,628.63,0.26883438]
[1739304888918,1.35576756,629.34,628.6,0.26883438]
[1739304889119,1.35576756,629.33,628.61,0.26883438]
[1739304889321,1.35576756,629.32,628.6,0.26883438]
[1739304889621,1.35576756,629.31,628.6,0.26883438]
[1739304889822,1.35576756,629.3,628.59,0.31817241]
[1739304890016,1.35576756,629.29,628.6,0.26865826]
[1739304890218,1.35576756,629.28,628.6,0.26865826]
[1739304890514,0.31766705,629.59,628.6,0.26865826]
[1739304890515,1.35576756,629.27,628.6,0.26865826]
[1739304890716,1.35576756,629.26,628.6,0.26865826]
[1739304891018,0.31766705,629.59,628.6,0.26865826]
[1739304891019,1.35576756,629.25,628.6,0.26865826]
[1739304891218,1.35576756,629.24,628.6,0.26865826]
[1739304891422,1.35576756,629.23,628.6,0.26865826]
[1739304891622,1.35576756,629.22,628.6,0.26865826]
[1739304891815,0.31766705,629.59,628.6,0.26865826]
[1739304891816,1.35576756,629.21,628.6,0.26865826]
[1739304892018,1.35576756,629.2,628.6,0.26865826]
[1739304892214,0.31766705,629.59,628.6,0.26865826]
[1739304892215,1.35576756,629.19,628.6,0.26865826]
[1739304892417,1.35576756,629.18,628.6,0.26865826]
[1739304892622,1.35576756,629.17,628.6,0.26865826]
[1739304892816,0.31766705,629.59,628.6,0.26865826]
[1739304892817,1.35576756,629.16,628.6,0.26865826]
[1739304893017,1.35576756,629.15,628.6,0.26865826]
[1739304893222,1.35576756,629.14,628.59,0.31817241]
[1739304893421,1.35576756,629.13,628.6,0.26867476]
[1739304893622,1.35576756,629.12,628.6,0.26867476]
[1739304893816,1.35576756,629.11,628.6,0.26867476]
[1739304894019,1.35576756,629.1,628.6,0.26867476]
[1739304894219,1.35576756,629.09,628.6,0.26867476]
[1739304894422,1.35576756,629.08,628.6,0.26867476]
[1739304894619,1.35576756,629.07,628.6,0.26867476]
[1739304894920,0.31766705,629.59,628.6,0.26867476]
[1739304894921,1.35576756,629.06,628.6,0.58684211]
[1739304895121,1.35576756,629.05,628.61,0.26867476]
[1739304895322,0.31766705,629.59,628.61,0.26867476]
[1739304895523,1.35687796,629.58,628.61,0.26867476]
[1739304895723,1.35687796,629.57,628.61,0.26867476]
[1739304895924,1.35687796,629.56,628.62,0.31815723]
[1739304896127,1.35687796,629.55,628.63,0.26867476]
[1739304896326,1.35687796,629.54,628.63,0.26867476]
[1739304896527,1.35687796,629.53,628.63,0.26867476]
[1739304896727,1.35687796,629.52,628.63,0.26867476]
[1739304896925,1.35687796,629.51,628.63,0.26867476]
[1739304897123,1.35687796,629.5,628.63,0.26867476]
[1739304897326,1.35687796,629.49,628.64,0.31814711]
[1739304897627,1.35687796,629.48,628.65,0.26867476]
[1739304897826,1.35687796,629.47,628.65,0.26867476]
[1739304898027,1.35687796,629.46,628.65,0.26867476]
[1739304898224,1.35687796,629.45,628.65,0.26867476]
[1739304898425,1.35687796,629.44,628.66,0.31813698]
[1739304898720,1.35687796,629.43,628.67,0.26867476]
[1739304898923,1.35687796,629.42,628.68,0.31812686]
[1739304899123,1.35687796,629.41,628.69,0.26867476]
[1739304899326,1.35687796,629.4,628.7,0.31811674]
[1739304899527,1.35687796,629.39,628.71,0.26867476]
[1739304899729,1.35687796,629.38,628.72,0.31810662]
[1739304899927,1.35687796,629.37,628.73,0.26867476]
[1739304900125,1.35687796,629.36,628.73,0.26867476]
[1739304900323,1.35687796,629.35,628.73,0.26867476]
[1739304900521,1.35687796,629.34,628.73,0.26867476]
[1739304900726,1.35687796,629.33,628.72,0.31810662]
[1739304900927,1.35561613,629.32,628.73,0.26849223]
[1739304901127,1.35561613,629.31,628.74,0.26849223]
[1739304901323,1.35561613,629.3,628.73,0.26849223]
[1739304901628,1.35561613,629.29,628.74,0.26849223]
[1739304901822,1.35561613,629.28,628.75,0.26849223]
[1739304902030,1.35561613,629.27,628.73,0.26849223]
[1739304902227,1.35561613,629.26,628.74,0.26849223]
[1739304902427,6.26196106,629.8,628.73,0.26849223]
[1739304902626,1.35516336,629.79,628.74,0.26849223]
[1739304902826,1.35516336,629.78,628.73,0.26849223]
[1739304903026,1.35516336,629.77,628.74,0.26849223]
[1739304903226,1.35516336,629.76,628.73,0.26849223]
[1739304903534,1.35516336,629.75,628.74,0.26849223]
[1739304903731,1.35516336,629.74,628.73,0.26849223]
[1739304903926,1.35516336,629.73,628.75,0.26849223]
[1739304904129,1.35516336,629.72,628.76,0.26849223]
[1739304904326,1.35516336,629.71,628.73,0.26849223]
[1739304904531,4.0654899,630.13,628.74,0.26849223]
[1739304904729,1.35517768,630.12,628.73,0.26849223]
[1739304905032,0.31740993,630.1,628.74,0.26849223]
[1739304905234,1.35517768,630.09,628.73,0.26849223]
[1739304905532,1.35517768,630.08,628.73,0.26849223]
[1739304905728,1.35517768,630.07,628.73,0.26849223]
[1739304905934,1.64713711,630.06,628.73,0.26849223]
[1739304906134,0.31740993,630.1,628.73,0.26849223]
[1739304906135,1.64713711,630.05,628.73,0.26849223]
[1739304906332,7.60906074,630.04,628.73,0.26849223]
[1739304906535,0.31745023,630.02,628.73,0.26849223]
[1739304906832,10.81079304,630.01,628.73,0.26849223]
[1739304907033,0.31746535,629.99,628.73,0.26849223]
[1739304907235,7.90108618,629.98,628.73,0.26849223]
[1739304907430,8.21856161,629.97,628.73,0.26849223]
[1739304907632,8.21856665,629.96,628.73,0.26849223]
[1739304907828,8.21857169,629.95,628.73,0.26849223]
[1739304908033,8.21857673,629.94,628.73,0.26849223]
[1739304908335,8.21858177,629.93,628.73,0.26849223]
[1739304908635,8.21858681,629.92,628.73,0.26849223]
[1739304908834,8.21859185,629.91,628.73,0.26849223]
[1739304909030,8.21859689,629.9,628.73,0.26849223]
[1739304909234,7.90108618,629.89,628.73,0.26849223]
[1739304909435,7.90108618,629.88,628.73,0.26849223]
[1739304909634,7.60912675,629.87,628.73,0.26849223]
[1739304909834,7.60912675,629.86,628.73,0.26849223]
[1739304910136,1.35524369,629.85,628.73,0.26849223]
[1739304910337,1.35524369,629.84,628.73,0.26849223]
[1739304910536,1.35524369,629.83,628.73,0.26849223]
[1739304910835,1.35524369,629.82,628.73,0.26849223]
[1739304911036,1.35524369,629.81,628.73,0.26849223]
[1739304911233,1.35535086,629.8,628.73,0.26849223]
[1739304911433,1.35535086,629.79,628.73,0.26849223]
[1739304911634,1.35535086,629.78,628.73,0.26849223]
[1739304911837,1.35535086,629.77,628.73,0.26849223]
[1739304912036,1.35535086,629.76,628.73,0.26849223]
[1739304912239,1.6729372,629.75,628.73,0.26849223]
[1739304912439,1.67294224,629.74,628.73,0.26849223]
[1739304912639,1.67294729,629.73,628.73,0.26849223]
[1739304912938,1.67295233,629.72,628.72,0.31810662]
[1739304913139,1.35535086,629.71,628.72,0.31810662]
[1739304913343,1.67296242,629.7,628.41,1.18445702]
[1739304913539,1.67296746,629.69,628.42,0.26818351]
[1739304913734,1.35535086,629.68,628.42,0.26818351]
[1739304913940,1.35535086,629.67,628.42,0.26818351]
[1739304914153,1.67298259,629.66,628.42,0.26818351]
[1739304914337,1.67298764,629.65,628.42,0.26818351]
[1739304914537,1.67299268,629.64,628.42,0.26818351]
[1739304914740,1.35535086,629.63,628.42,0.26818351]
[1739304914941,1.35535086,629.62,628.42,0.26818351]
[1739304915144,1.35535086,629.61,628.42,0.26818351]
[1739304915344,1.67301286,629.6,628.42,0.26818351]
[1739304915539,1.67301791,629.59,628.42,0.26818351]
[1739304915738,1.35535086,629.58,628.42,0.26818351]
[1739304915941,1.35535086,629.57,628.42,0.26818351]
[1739304916138,5.4212428,629.56,628.42,0.26818351]
[1739304916346,1.35535086,629.55,628.42,0.26818351]
[1739304916540,1.35535086,629.54,628.42,0.26818351]
[1739304916743,1.35535086,629.53,628.42,0.26818351]
[1739304916939,1.35535086,629.52,628.43,0.26818351]
[1739304917145,1.35535086,629.51,628.25,0.26818351]
[1739304917340,1.35535086,629.5,628.26,0.58652305]
[1739304917545,1.35535086,629.49,628.26,0.58652305]
[1739304917746,1.35535086,629.48,628.27,0.58651798]
[1739304917947,1.35535086,629.47,628.28,0.58651291]
[1739304918248,1.35535086,629.46,628.29,0.58650785]
[1739304918450,4.06589194,629.54,628.06,1.65988298]
[1739304918451,1.35535086,629.45,628.3,0.58650278]
[1739304918645,1.35535086,629.44,628.31,0.3183142]
[1739304918951,1.35535086,629.43,628.32,0.26832456]
[1739304919150,1.35535086,629.42,628.33,0.26832456]
[1739304919341,1.356352,629.41,628.34,0.26832456]
[1739304919546,1.356352,629.4,628.35,0.5866185]
[1739304919747,1.356352,629.39,628.36,0.26832456]
[1739304920050,1.356352,629.38,628.36,0.26832456]
[1739304920252,1.356352,629.37,628.36,0.26832456]
[1739304920447,1.356352,629.36,628.37,0.31828381]
[1739304920649,1.356352,629.35,628.37,0.31828381]
[1739304920852,1.356352,629.34,628.38,0.26832456]
[1739304921149,1.35651056,629.33,628.38,0.26832456]
[1739304921354,1.35651056,629.32,628.38,0.26832456]
[1739304921553,1.35651056,629.31,628.37,0.31828381]
[1739304921749,1.35651056,629.3,628.38,0.26820906]
[1739304921953,1.35651056,629.29,628.38,0.26820906]
[1739304922154,1.35651056,629.28,628.38,0.26820906]
[1739304922454,1.35651056,629.27,628.38,0.26820906]
[1739304922654,1.35651056,629.26,628.38,0.26820906]
[1739304922853,1.35651056,629.25,628.38,0.26820906]
[1739304923054,1.35651056,629.24,628.38,0.26820906]
[1739304923353,1.35651056,629.23,628.38,0.26820906]
[1739304923552,1.35651056,629.22,628.38,0.26820906]
[1739304923749,1.35651056,629.21,628.38,0.26820906]
[1739304923952,1.35651056,629.2,628.38,0.26820906]
[1739304924157,1.35651056,629.19,628.38,0.26820906]
[1739304924455,1.35651056,629.18,628.38,0.26820906]
[1739304924654,1.35651056,629.17,628.38,0.26820906]
[1739304924854,1.35651056,629.16,628.38,0.26820906]
[1739304925056,1.35651056,629.15,628.38,0.26820906]
[1739304925355,1.35651056,629.14,628.38,0.26820906]
[1739304925555,1.35651056,629.13,628.38,0.26820906]
[1739304925749,1.35651056,629.12,628.38,0.26820906]
[1739304925949,1.35651056,629.11,628.38,0.26820906]
[1739304926154,1.35651056,629.1,628.39,0.26788259]
[1739304926351,1.35651056,629.09,628.39,0.26788259]
[1739304926552,1.35651056,629.08,628.4,0.26788259]
[1739304926755,1.35651056,629.07,628.38,0.26788259]
[1739304926950,1.35651056,629.06,628.38,0.26788259]
[1739304927150,1.35624484,629.05,628.38,0.26788259]
[1739304927354,1.35624484,629.04,628.38,0.26788259]
[1739304927663,1.35624484,629.03,628.38,0.26788259]
[1739304927952,1.3560965,629.02,628.38,0.26788259]
[1739304928157,1.3560965,629.01,628.38,0.26788259]
[1739304928458,1.3560965,629.0,628.38,0.26788259]
[1739304928657,0.31766705,629.59,628.38,0.26788259]
[1739304928658,1.3560965,628.99,628.38,0.26788259]
[1739304928851,1.3560965,628.98,628.38,0.26788259]
[1739304929054,1.3560965,628.97,628.38,0.26788259]
[1739304929255,1.3560965,628.96,628.38,0.26788259]
[1739304929455,1.35574067,628.95,628.38,0.26788259]
[1739304929651,1.35574067,628.94,628.37,0.31828381]
[1739304929860,1.35574067,628.93,628.38,0.26762773]
[1739304930157,1.35574067,628.92,628.38,0.26762773]
[1739304930360,0.31766705,629.59,628.38,0.26762773]
[1739304930361,1.35574067,628.91,628.38,0.26762773]
[1739304930552,1.35574067,628.9,628.38,0.26762773]
[1739304930758,1.35574067,628.89,628.38,0.26762773]
[1739304930959,1.35574067,628.88,628.38,0.26762773]
[1739304931153,0.31766705,629.59,628.38,0.26762773]
[1739304931154,1.35574067,628.87,628.38,0.26762773]
[1739304931356,1.35574067,628.86,628.38,0.26762773]
[1739304931557,1.35574067,628.85,628.39,0.26764868]
[1739304931755,1.35574067,628.84,628.38,0.26764868]
[1739304932063,1.35574067,628.84,628.37,0.31828381]
[1739304932064,1.35574067,628.83,628.39,0.26764868]
[1739304932255,1.35574067,628.82,628.38,0.26764868]
[1739304932454,1.35574067,628.81,628.38,0.26764868]
[1739304932659,1.35574067,628.8,628.38,0.26764868]
[1739304932857,1.35574067,628.79,628.38,0.26764868]
[1739304933058,1.35574067,628.78,628.38,0.26764868]
[1739304933259,1.35574067,628.77,628.38,0.26764868]
[1739304933462,1.35574067,628.76,628.38,0.26764868]
[1739304933657,1.35574067,628.75,628.38,0.26764868]
[1739304933861,1.35574067,628.74,628.37,0.31828381]
[1739304934061,1.35574067,628.73,628.38,0.26755988]
[1739304934364,1.35574067,628.72,628.39,0.26755988]
[1739304934561,1.35574067,628.71,627.93,0.26755988]
[1739304934757,1.35574067,628.71,627.82,1.6608336]
[1739304934758,1.35574067,628.7,628.04,1.18445702]
[1739304934962,2.90869483,629.44,628.04,1.18445702]
[1739304934963,1.35574067,628.69,628.05,0.26755988]
[1739304935264,1.35574067,628.68,628.05,0.26755988]
[1739304935462,1.35468466,628.67,628.05,0.26755988]
[1739304935664,1.35468466,628.66,628.05,0.26755988]
[1739304935864,1.35468466,628.65,628.05,0.26755988]
[1739304936071,1.35467749,628.64,628.05,0.26755988]
[1739304936267,1.35467749,628.63,628.05,0.26755988]
[1739304936466,1.35467749,628.62,628.05,0.26755988]
[1739304936667,1.35467749,628.61,628.05,0.26755988]
[1739304936864,1.35467749,628.6,628.05,0.26755988]
[1739304937061,1.35467749,628.59,628.05,0.26755988]
[1739304937267,1.35467749,628.58,628.06,0.26775355]
[1739304937563,1.35467749,628.57,628.07,0.26775355]
[1739304937864,1.35467749,628.56,628.08,0.26775355]
[1739304938062,1.35467749,628.55,627.85,0.26775355]
[1739304938260,1.35467749,628.54,627.86,0.5862959]
[1739304938465,1.35467749,628.53,627.87,0.26775355]
[1739304938664,1.35467749,628.52,627.87,0.26775355]
[1739304938866,1.35467749,628.51,627.88,0.3185322]
[1739304939167,1.35467749,628.5,627.89,0.26775355]
[1739304939362,1.35467749,628.49,627.89,0.26775355]
[1739304939568,1.35309166,628.48,627.89,0.26775355]
[1739304939769,1.35309166,628.47,627.89,0.26775355]
[1739304939967,1.35309166,628.46,627.89,0.26775355]
[1739304940164,1.35309166,628.45,627.9,0.31852205]
[1739304940369,6.25557039,629.27,627.9,0.31852205]
[1739304940370,1.35309166,628.44,627.91,0.26775355]
[1739304940568,1.35309166,628.43,627.91,0.26775355]
[1739304940767,1.35309166,628.42,627.91,0.26775355]
[1739304940964,1.35309166,628.41,627.92,0.31851191]
[1739304941167,1.35309166,628.4,627.93,0.26775355]
[1739304941468,1.35309166,628.39,627.94,0.31850176]
[1739304941668,2.90869483,629.26,627.94,0.31850176]
[1739304941869,1.35219285,629.25,627.95,0.26775355]
[1739304942168,1.35219285,629.24,627.96,0.31849162]
[1739304942364,1.35219285,629.23,627.97,0.26775355]
[1739304942566,0.31766705,629.59,627.97,0.26775355]
[1739304942567,1.35219285,629.22,627.97,0.26775355]
[1739304942765,0.31766705,629.59,627.98,0.31848148]
[1739304942766,1.35219285,629.21,627.98,0.31848148]
[1739304942962,1.35219285,629.2,627.99,0.26775355]
[1739304943266,1.35219285,629.19,628.0,0.31847133]
[1739304943569,1.35219285,629.18,628.01,0.26775355]
[1739304943764,1.35219285,629.17,628.02,0.31846119]
[1739304943966,1.35219285,629.16,628.03,0.26775355]
[1739304944270,1.35132807,629.15,628.03,0.26775355]
[1739304944470,1.35132807,629.14,628.03,0.26775355]
[1739304944670,1.35132807,629.13,628.02,0.31846119]
[1739304944864,1.35132807,629.12,628.03,0.26751813]
[1739304945065,1.35132807,629.11,628.03,0.26751813]
[1739304945267,1.35132807,629.1,628.03,0.26751813]
[1739304945464,1.35132807,629.09,628.03,0.26751813]
[1739304945670,1.35132807,629.08,628.03,0.26751813]
[1739304945870,1.35132807,629.07,628.03,0.26751813]
[1739304946170,1.35132807,629.06,628.03,0.26751813]
[1739304946369,1.35132807,629.05,628.03,0.26751813]
[1739304946569,1.35132807,629.04,628.03,0.26751813]
[1739304946864,1.35132807,629.03,628.03,0.26751813]
[1739304947069,1.35132807,629.02,628.03,0.26751813]
[1739304947269,1.35132807,629.01,628.03,0.26751813]
[1739304947465,1.35132807,629.0,628.03,0.26751813]
[1739304947664,1.35132807,628.99,628.03,0.26751813]
[1739304947863,1.35132807,628.98,628.03,0.26751813]
[1739304948071,1.35132807,628.97,628.03,0.26751813]
[1739304948363,1.35132807,628.96,628.03,0.26751813]
[1739304948568,1.35132807,628.95,628.03,0.26751813]
[1739304948871,1.35132807,628.94,628.03,0.26751813]
[1739304949074,1.35132807,628.93,628.03,0.26751813]
[1739304949370,1.35132807,628.92,628.03,0.26751813]
[1739304949573,1.35132807,628.91,628.03,0.26751813]
[1739304949772,1.35132807,628.9,628.03,0.26751813]
[1739304950065,1.34992417,628.89,628.03,0.26751813]
[1739304950265,1.34992417,628.88,628.03,0.26751813]
[1739304950466,1.34992417,628.87,628.03,0.26751813]
[1739304950669,1.34992417,628.86,628.03,0.26751813]
[1739304950971,1.34992417,628.85,628.03,0.26751813]
[1739304951171,1.34992417,628.84,628.03,0.26751813]
[1739304951372,1.34992417,628.83,628.03,0.26751813]
[1739304951671,1.34992417,628.82,628.03,0.26751813]
[1739304951871,1.34992417,628.81,628.03,0.26751813]
[1739304952166,1.34992417,628.8,628.02,0.31846119]
[1739304952368,0.31766705,629.59,628.03,0.26757427]
[1739304952570,1.64145418,629.58,628.04,0.31845105]
[1739304952766,1.95913132,629.57,628.05,0.26757427]
[1739304952972,1.95913637,629.56,628.06,0.31844091]
[1739304953174,1.64145418,629.55,628.07,0.26757427]
[1739304953374,1.66700798,629.54,628.08,0.31843077]
[1739304953673,1.66701302,629.53,628.09,0.26757427]
[1739304953873,1.66701807,629.52,628.1,0.31842063]
[1739304954173,1.66702312,629.51,628.11,0.26757427]
[1739304954368,1.66702817,629.5,628.12,0.31841049]
[1739304954568,1.66703321,629.49,628.13,0.26757427]
[1739304954774,1.66703826,629.48,628.14,0.31840035]
[1739304955073,1.66704331,629.47,628.15,0.26757427]
[1739304955272,1.66704835,629.46,628.16,0.31839021]
[1739304955472,1.6670534,629.45,628.17,0.26757427]
[1739304955672,1.66705845,629.44,628.17,0.26757427]
[1739304955871,1.3493157,629.43,628.17,0.26757427]
[1739304956173,1.3493157,629.42,628.17,0.26757427]
[1739304956374,1.3493157,629.41,628.17,0.26757427]
[1739304956578,1.3493157,629.4,628.17,0.26757427]
[1739304956772,1.3493157,629.39,628.17,0.26757427]
[1739304956971,1.3493157,629.38,628.17,0.26757427]
[1739304957174,1.3493157,629.37,628.17,0.26757427]
[1739304957374,1.3493157,629.36,628.17,0.26757427]
[1739304957575,1.3493157,629.35,628.17,0.26757427]
[1739304957776,1.3493157,629.34,628.17,0.26757427]
[1739304958076,1.3493157,629.33,628.17,0.26757427]
[1739304958276,1.3493157,629.32,628.17,0.26757427]
[1739304958576,1.3493157,629.31,628.17,0.26757427]
[1739304958776,1.3493157,629.3,628.17,0.26757427]
[1739304958978,1.3493157,629.29,628.17,0.26757427]
[1739304959173,1.3493157,629.28,628.17,0.26757427]
[1739304959376,1.3493157,629.27,628.17,0.26757427]
[1739304959573,1.3493157,629.26,628.17,0.26757427]
[1739304959777,1.3493157,629.25,628.17,0.26757427]
[1739304960077,1.3493157,629.24,628.17,0.26757427]
[1739304960274,1.3493157,629.23,628.17,0.26757427]
[1739304960477,1.3493157,629.22,628.17,0.26757427]
[1739304960684,1.3493157,629.21,628.17,0.26757427]
[1739304960881,1.3513024,629.2,628.18,0.26757427]
[1739304961179,1.3513024,629.19,628.19,0.26730402]
[1739304961479,1.3513024,629.18,628.2,0.26730402]
[1739304961676,1.3513024,629.17,628.17,0.26730402]
[1739304961878,1.3513024,629.16,628.18,0.26740848]
[1739304962079,1.3513024,629.15,628.17,0.26740848]
[1739304962276,1.3513024,629.14,628.19,1.18445702]
[1739304962480,1.3513024,629.13,628.2,0.26740848]
[1739304962674,1.3513024,629.12,628.2,0.26740848]
[1739304962881,1.3513024,629.11,628.2,0.26740848]
[1739304963082,1.3513024,629.1,628.2,0.26740848]
[1739304963277,1.3513024,629.09,628.2,0.26740848]
[1739304963477,1.3513024,629.08,628.2,0.26740848]
[1739304963783,1.3513024,629.07,628.2,0.26740848]
[1739304963983,1.3513024,629.06,628.2,0.26740848]
[1739304964178,1.3513024,629.05,628.2,0.26740848]
[1739304964383,1.3513024,629.04,628.2,0.26740848]
[1739304964576,1.3513024,629.03,628.2,0.26740848]
[1739304964781,1.3513024,629.02,628.21,0.26757817]
[1739304964983,1.3513024,629.01,628.2,0.26757817]
[1739304965181,1.3513024,629.0,628.21,0.26757817]
[1739304965377,1.3513024,628.99,628.2,0.26757817]
[1739304965582,1.3513024,628.98,628.21,0.26757817]
[1739304965783,1.3513024,628.97,628.22,0.26757817]
[1739304965983,1.3513024,628.96,628.17,0.26757817]
[1739304966182,1.3513024,628.95,628.18,0.26757817]
[1739304966378,1.3513024,628.94,628.16,0.31839021]
[1739304966584,1.3513024,628.93,628.17,0.26789982]
[1739304966883,1.3513024,628.92,628.17,0.26789982]
[1739304967083,1.3513024,628.91,628.17,0.26789982]
[1739304967384,1.3513024,628.9,628.17,0.26789982]
[1739304967581,1.3513024,628.89,628.17,0.26789982]
[1739304967778,1.3513024,628.88,628.17,0.26789982]